[Event "Titled Tuesday Blitz July 4 Early 2023"]
[White "Rottenwohrer Suarez, Juan"]
[Black "Tristan, Leonardo"]
[WhiteFideId "32068182"]
[BlackFideId "113816"]
[WhiteElo "2530"]
[BlackElo "2777"]
[Result "0-1"]
[Round "10"]
[TimeControl "180+2"]
[Date "2023.07.04"]
[WhiteClock "0:00:00"]
[BlackClock "0:00:06"]
[Board "58"]

1. c4 {[%clk 0:03:00]}  e6 {[%clk 0:02:59]} 2. g3 {[%clk 0:02:57]}  d5 {[%clk 0:03:00]} 3. Bg2 {[%clk 0:02:57]}  Nf6 {[%clk 0:03:00]} 4. Nf3 {[%clk 0:02:58]}  Be7 {[%clk 0:03:00]} 5. O-O {[%clk 0:02:59]}  O-O {[%clk 0:03:00]} 6. b3 {[%clk 0:02:59]}  a5 {[%clk 0:03:01]} 7. Bb2 {[%clk 0:02:56]}  a4 {[%clk 0:03:01]} 8. bxa4 {[%clk 0:02:47]}  Nbd7 {[%clk 0:02:34]} 9. cxd5 {[%clk 0:02:44]}  exd5 {[%clk 0:02:34]} 10. Nc3 {[%clk 0:02:16]}  Nb6 {[%clk 0:02:25]} 11. d3 {[%clk 0:02:08]}  Bd7 {[%clk 0:02:20]} 12. Nd4 {[%clk 0:01:51]}  Nxa4 {[%clk 0:02:18]} 13. Nxa4 {[%clk 0:01:50]}  Bxa4 {[%clk 0:02:18]} 14. Qd2 {[%clk 0:01:50]}  Bd7 {[%clk 0:02:13]} 15. Nf3 {[%clk 0:01:37]}  c5 {[%clk 0:02:09]} 16. Ne5 {[%clk 0:01:36]}  Be6 {[%clk 0:02:05]} 17. a4 {[%clk 0:01:36]}  Ra6 {[%clk 0:01:50]} 18. Rfb1 {[%clk 0:01:29]}  Qa8 {[%clk 0:01:46]} 19. Bc3 {[%clk 0:01:21]}  Bd6 {[%clk 0:01:33]} 20. e3 {[%clk 0:01:19]}  Rd8 {[%clk 0:01:22]} 21. h4 {[%clk 0:01:10]}  h6 {[%clk 0:01:21]} 22. a5 {[%clk 0:01:00]}  Bc7 {[%clk 0:01:21]} 23. Qb2 {[%clk 0:00:58]}  Rb8 {[%clk 0:01:15]} 24. Qb5 {[%clk 0:00:52]}  Qa7 {[%clk 0:01:11]} 25. Bf3 {[%clk 0:00:26]}  Ne8 {[%clk 0:01:11]} 26. Kg2 {[%clk 0:00:21]}  Nd6 {[%clk 0:01:11]} 27. Qa4 {[%clk 0:00:20]}  Ra8 {[%clk 0:00:38]} 28. Ng4 {[%clk 0:00:19]}  Bxa5 {[%clk 0:00:30]} 29. Qc2 {[%clk 0:00:10]}  Bxc3 {[%clk 0:00:29]} 30. Rxa6 {[%clk 0:00:10]}  Qxa6 {[%clk 0:00:29]} 31. Qxc3 {[%clk 0:00:11]}  Rc8 {[%clk 0:00:16]} 32. Rd1 {[%clk 0:00:08]}  b5 {[%clk 0:00:16]} 33. Qe5 {[%clk 0:00:08]}  b4 {[%clk 0:00:09]} 34. h5 {[%clk 0:00:03]}  c4 {[%clk 0:00:09]} 35. dxc4 {[%clk 0:00:02]}  Nxc4 {[%clk 0:00:09]} 36. Qd4 {[%clk 0:00:01]}  b3 {[%clk 0:00:09]} 37. Ne5 {[%clk 0:00:02]}  Nxe5 {[%clk 0:00:09]} 38. Qxe5 {[%clk 0:00:03]}  Qb7 {[%clk 0:00:08]} 39. Bxd5 {[%clk 0:00:02]}  Bxd5+ {[%clk 0:00:08]} 40. Qxd5 {[%clk 0:00:03]}  Qb6 {[%clk 0:00:06]} 41. Qd4 {[%clk 0:00:03]}  Qb5 {[%clk 0:00:06]} 42. Qd5 {[%clk 0:00:03]}  Qb8 {[%clk 0:00:06]} 43. Qd6 {[%clk 0:00:02]}  Qb7+ {[%clk 0:00:06]} 44. Qd5 {[%clk 0:00:02]}  Rc6 {[%clk 0:00:07]} 45. Qd8+ {[%clk 0:00:02]}  Kh7 {[%clk 0:00:07]} 46. Qd3+ {[%clk 0:00:03]}  Kg8 {[%clk 0:00:06]} 47. Qd8+ {[%clk 0:00:03]}  Kh7 {[%clk 0:00:07]} 48. Qd3+ {[%clk 0:00:03]}  g6 {[%clk 0:00:08]} 49. hxg6+ {[%clk 0:00:03]}  Kg7 {[%clk 0:00:07]} 50. Qe4 {[%clk 0:00:02]}  fxg6 {[%clk 0:00:07]} 51. Qe5+ {[%clk 0:00:02]}  Kf7 {[%clk 0:00:06]} 52. Qd5+ {[%clk 0:00:02]}  Ke7 {[%clk 0:00:06]} 53. Rd4 {[%clk 0:00:02]}  Rb6 {[%clk 0:00:05]} 54. Re4+ {[%clk 0:00:02]}  Kf6 {[%clk 0:00:05]} 55. Qe5+ {[%clk 0:00:00]}  Kf7 {[%clk 0:00:06]} 0-1


[Site "https://www.chess.com"]

[Event "Titled Tuesday Blitz July 4 Early 2023"]
[White "Czopor, Maciej"]
[Black "David, Bogdan-Emanuel"]
[WhiteFideId "21805431"]
[BlackFideId "1229907"]
[WhiteElo "2692"]
[BlackElo "2526"]
[Result "1-0"]
[Round "10"]
[TimeControl "180+2"]
[Date "2023.07.04"]
[WhiteClock "0:01:24"]
[BlackClock "0:00:51"]
[Board "60"]

1. c4 {[%clk 0:03:00]}  g6 {[%clk 0:02:58]} 2. Nc3 {[%clk 0:03:01]}  Bg7 {[%clk 0:02:58]} 3. d4 {[%clk 0:03:01]}  d6 {[%clk 0:02:58]} 4. e4 {[%clk 0:03:01]}  e5 {[%clk 0:02:50]} 5. d5 {[%clk 0:03:00]}  a5 {[%clk 0:02:49]} 6. Bd3 {[%clk 0:02:56]}  Na6 {[%clk 0:02:48]} 7. Bc2 {[%clk 0:02:56]}  Bh6 {[%clk 0:02:44]} 8. Bxh6 {[%clk 0:02:49]}  Nxh6 {[%clk 0:02:45]} 9. Qd2 {[%clk 0:02:49]}  Ng8 {[%clk 0:02:20]} 10. Nge2 {[%clk 0:02:50]}  Nc5 {[%clk 0:02:18]} 11. O-O {[%clk 0:02:47]}  Qh4 {[%clk 0:02:08]} 12. b3 {[%clk 0:02:44]}  Ne7 {[%clk 0:02:06]} 13. a3 {[%clk 0:02:44]}  f5 {[%clk 0:02:00]} 14. Nb5 {[%clk 0:02:37]}  Kd8 {[%clk 0:01:56]} 15. exf5 {[%clk 0:02:31]}  gxf5 {[%clk 0:01:56]} 16. b4 {[%clk 0:02:28]}  Na6 {[%clk 0:01:56]} 17. c5 {[%clk 0:02:23]}  Bd7 {[%clk 0:01:41]} 18. cxd6 {[%clk 0:01:46]}  Bxb5 {[%clk 0:01:40]} 19. dxe7+ {[%clk 0:01:46]}  Kxe7 {[%clk 0:01:25]} 20. Ng3 {[%clk 0:01:43]}  Qf4 {[%clk 0:01:10]} 21. Nxf5+ {[%clk 0:01:42]}  Kf6 {[%clk 0:01:09]} 22. Qxf4 {[%clk 0:01:32]}  exf4 {[%clk 0:01:10]} 23. Rfe1 {[%clk 0:01:32]}  axb4 {[%clk 0:01:09]} 24. Re6+ {[%clk 0:01:32]}  Kg5 {[%clk 0:00:50]} 25. h4+ {[%clk 0:01:26]}  Kg4 {[%clk 0:00:50]} 26. f3+ {[%clk 0:01:23]}  Kh5 {[%clk 0:00:51]} 27. Rh6# {[%clk 0:01:24]} 1-0


[Site "https://www.chess.com"]

[Event "Titled Tuesday Blitz July 4 Early 2023"]
[White "Burmakin, Vladimir"]
[Black "Deng, Henry"]
[WhiteFideId "4105109"]
[BlackFideId "30965454"]
[WhiteElo "2618"]
[BlackElo "2523"]
[Result "1-0"]
[Round "10"]
[TimeControl "180+2"]
[Date "2023.07.04"]
[WhiteClock "0:02:02"]
[BlackClock "0:02:12"]
[Board "63"]

1. d4 {[%clk 0:03:00]}  d5 {[%clk 0:02:59]} 2. c4 {[%clk 0:03:00]}  c6 {[%clk 0:02:58]} 3. Nf3 {[%clk 0:02:58]}  e6 {[%clk 0:02:58]} 4. e3 {[%clk 0:02:56]}  Nf6 {[%clk 0:02:54]} 5. Bd3 {[%clk 0:02:56]}  Nbd7 {[%clk 0:02:53]} 6. O-O {[%clk 0:02:50]}  Bd6 {[%clk 0:02:52]} 7. Nc3 {[%clk 0:02:49]}  dxc4 {[%clk 0:02:52]} 8. Bxc4 {[%clk 0:02:49]}  b5 {[%clk 0:02:53]} 9. Bb3 {[%clk 0:02:44]}  b4 {[%clk 0:02:47]} 10. Na4 {[%clk 0:02:40]}  Kf8 {[%clk 0:02:47]} 11. Qc2 {[%clk 0:02:35]}  Bb7 {[%clk 0:02:46]} 12. e4 {[%clk 0:02:34]}  e5 {[%clk 0:02:43]} 13. Be3 {[%clk 0:02:28]}  exd4 {[%clk 0:02:41]} 14. Bxd4 {[%clk 0:02:28]}  Qe7 {[%clk 0:02:39]} 15. e5 {[%clk 0:02:19]}  Nxe5 {[%clk 0:02:37]} 16. Nxe5 {[%clk 0:02:18]}  Bxe5 {[%clk 0:02:32]} 17. Rfe1 {[%clk 0:02:17]}  Ng4 {[%clk 0:02:18]} 18. Rxe5 {[%clk 0:02:16]}  Nxe5 {[%clk 0:02:18]} 19. Bc5 {[%clk 0:02:15]}  Re8 {[%clk 0:02:16]} 20. Bxe7+ {[%clk 0:02:14]}  Rxe7 {[%clk 0:02:17]} 21. Rd1 {[%clk 0:02:07]}  Re8 {[%clk 0:02:13]} 22. Qc5+ {[%clk 0:02:06]}  Kg8 {[%clk 0:02:12]} 23. Qxe5 {[%clk 0:02:02]} 1-0


[Site "https://www.chess.com"]

[Event "Titled Tuesday Blitz July 4 Early 2023"]
[White "Pham, Le Thao Nguyen"]
[Black "Karttunen, Mika"]
[WhiteFideId "12401226"]
[BlackFideId "502081"]
[WhiteElo "2509"]
[BlackElo "2602"]
[Result "1-0"]
[Round "10"]
[TimeControl "180+2"]
[Date "2023.07.04"]
[WhiteClock "0:00:03"]
[BlackClock "0:00:01"]
[Board "66"]

1. d4 {[%clk 0:02:56]}  Nf6 {[%clk 0:02:59]} 2. Nf3 {[%clk 0:02:56]}  g6 {[%clk 0:02:59]} 3. c4 {[%clk 0:02:52]}  Bg7 {[%clk 0:02:59]} 4. Nc3 {[%clk 0:02:52]}  O-O {[%clk 0:02:58]} 5. e4 {[%clk 0:02:50]}  d6 {[%clk 0:02:58]} 6. h3 {[%clk 0:02:47]}  e5 {[%clk 0:02:57]} 7. dxe5 {[%clk 0:02:36]}  dxe5 {[%clk 0:02:57]} 8. Qxd8 {[%clk 0:02:36]}  Rxd8 {[%clk 0:02:57]} 9. Bg5 {[%clk 0:02:37]}  Re8 {[%clk 0:02:52]} 10. Nd5 {[%clk 0:02:36]}  Nxd5 {[%clk 0:02:47]} 11. cxd5 {[%clk 0:02:37]}  c6 {[%clk 0:02:42]} 12. Bc4 {[%clk 0:02:30]}  b5 {[%clk 0:02:31]} 13. Bb3 {[%clk 0:02:26]}  Bb7 {[%clk 0:02:23]} 14. Rd1 {[%clk 0:02:18]}  a5 {[%clk 0:02:13]} 15. a4 {[%clk 0:02:05]}  Na6 {[%clk 0:02:07]} 16. Be3 {[%clk 0:01:57]}  cxd5 {[%clk 0:01:47]} 17. axb5 {[%clk 0:01:51]}  Nb4 {[%clk 0:01:47]} 18. exd5 {[%clk 0:00:57]}  e4 {[%clk 0:01:44]} 19. Nd4 {[%clk 0:00:56]}  a4 {[%clk 0:01:20]} 20. Bc4 {[%clk 0:00:53]}  Bxd5 {[%clk 0:01:17]} 21. Bxd5 {[%clk 0:00:49]}  Nxd5 {[%clk 0:01:17]} 22. O-O {[%clk 0:00:48]}  Nb4 {[%clk 0:01:12]} 23. Rd2 {[%clk 0:00:32]}  Reb8 {[%clk 0:00:48]} 24. Ra1 {[%clk 0:00:21]}  Nd3 {[%clk 0:00:41]} 25. Ra3 {[%clk 0:00:10]}  f5 {[%clk 0:00:40]} 26. f3 {[%clk 0:00:08]}  f4 {[%clk 0:00:36]} 27. fxe4 {[%clk 0:00:08]}  fxe3 {[%clk 0:00:26]} 28. Rdxd3 {[%clk 0:00:08]}  Bxd4 {[%clk 0:00:24]} 29. Rxd4 {[%clk 0:00:09]}  Rxb5 {[%clk 0:00:25]} 30. Rxe3 {[%clk 0:00:05]}  Rxb2 {[%clk 0:00:25]} 31. Ra3 {[%clk 0:00:05]}  Rf8 {[%clk 0:00:21]} 32. Rdxa4 {[%clk 0:00:05]}  Rff2 {[%clk 0:00:22]} 33. Rg3 {[%clk 0:00:06]}  Rfe2 {[%clk 0:00:21]} 34. Kh2 {[%clk 0:00:05]}  Kg7 {[%clk 0:00:21]} 35. h4 {[%clk 0:00:04]}  Rb7 {[%clk 0:00:19]} 36. Kh3 {[%clk 0:00:02]}  Re7 {[%clk 0:00:19]} 37. Rg4 {[%clk 0:00:01]}  Re3+ {[%clk 0:00:19]} 38. g3 {[%clk 0:00:01]}  h5 {[%clk 0:00:19]} 39. Rg5 {[%clk 0:00:02]}  R3xe4 {[%clk 0:00:19]} 40. Rxe4 {[%clk 0:00:03]}  Rxe4 {[%clk 0:00:19]} 41. Rb5 {[%clk 0:00:03]}  Re6 {[%clk 0:00:19]} 42. Rg5 {[%clk 0:00:03]}  Kf6 {[%clk 0:00:18]} 43. Rd5 {[%clk 0:00:04]}  Re2 {[%clk 0:00:19]} 44. Rd6+ {[%clk 0:00:04]}  Kf5 {[%clk 0:00:19]} 45. Rd5+ {[%clk 0:00:05]}  Re5 {[%clk 0:00:19]} 46. Rd6 {[%clk 0:00:05]}  Re6 {[%clk 0:00:18]} 47. Rd5+ {[%clk 0:00:05]}  Ke4 {[%clk 0:00:18]} 48. Rg5 {[%clk 0:00:04]}  Kf3 {[%clk 0:00:18]} 49. Rb5 {[%clk 0:00:03]}  Re1 {[%clk 0:00:17]} 50. Rb3+ {[%clk 0:00:03]}  Re3 {[%clk 0:00:18]} 51. Rb6 {[%clk 0:00:03]}  g5 {[%clk 0:00:05]} 52. hxg5 {[%clk 0:00:02]}  Re4 {[%clk 0:00:04]} 53. Rf6+ {[%clk 0:00:03]}  Ke3 {[%clk 0:00:04]} 54. Rf4 {[%clk 0:00:01]}  Re5 {[%clk 0:00:02]} 55. Kh4 {[%clk 0:00:01]}  Re8 {[%clk 0:00:02]} 56. Kxh5 {[%clk 0:00:02]}  Rh8+ {[%clk 0:00:03]} 57. Kg4 {[%clk 0:00:03]}  Rg8 {[%clk 0:00:02]} 58. Rf6 {[%clk 0:00:03]}  Rg7 {[%clk 0:00:03]} 59. g6 {[%clk 0:00:03]}  Rg8 {[%clk 0:00:01]} 60. Kg5 {[%clk 0:00:03]} 1-0


[Site "https://www.chess.com"]

[Event "Titled Tuesday Blitz July 4 Early 2023"]
[White "Gomez Barrera, Javiera Belen"]
[Black "Piesik, Piotr"]
[WhiteFideId "3418723"]
[BlackFideId "1136194"]
[WhiteElo "2470"]
[BlackElo "2595"]
[Result "0-1"]
[Round "10"]
[TimeControl "180+2"]
[Date "2023.07.04"]
[WhiteClock "0:00:00"]
[BlackClock "0:01:04"]
[Board "68"]

1. e4 {[%clk 0:03:00]}  g6 {[%clk 0:02:57]} 2. d4 {[%clk 0:03:00]}  Bg7 {[%clk 0:02:58]} 3. Nc3 {[%clk 0:03:01]}  c6 {[%clk 0:02:58]} 4. Be3 {[%clk 0:03:01]}  d5 {[%clk 0:02:58]} 5. e5 {[%clk 0:03:01]}  Nh6 {[%clk 0:02:59]} 6. h3 {[%clk 0:02:45]}  Nf5 {[%clk 0:02:58]} 7. Qd2 {[%clk 0:02:45]}  Nxe3 {[%clk 0:02:58]} 8. Qxe3 {[%clk 0:02:43]}  c5 {[%clk 0:02:56]} 9. Nf3 {[%clk 0:02:27]}  Nc6 {[%clk 0:02:53]} 10. Bb5 {[%clk 0:02:21]}  e6 {[%clk 0:02:51]} 11. dxc5 {[%clk 0:02:10]}  Qa5 {[%clk 0:02:45]} 12. Bxc6+ {[%clk 0:02:09]}  bxc6 {[%clk 0:02:45]} 13. O-O {[%clk 0:02:08]}  Rb8 {[%clk 0:02:45]} 14. Rfb1 {[%clk 0:01:43]}  Bf8 {[%clk 0:02:42]} 15. Qf4 {[%clk 0:01:33]}  Qxc5 {[%clk 0:02:36]} 16. Qf6 {[%clk 0:01:30]}  Rg8 {[%clk 0:02:35]} 17. Ng5 {[%clk 0:01:29]}  Qe7 {[%clk 0:02:34]} 18. Nxh7 {[%clk 0:01:29]}  Bg7 {[%clk 0:02:34]} 19. Qxe7+ {[%clk 0:01:28]}  Kxe7 {[%clk 0:02:35]} 20. f4 {[%clk 0:01:26]}  c5 {[%clk 0:02:28]} 21. b3 {[%clk 0:01:22]}  Rb4 {[%clk 0:02:21]} 22. g3 {[%clk 0:01:19]}  g5 {[%clk 0:02:14]} 23. a3 {[%clk 0:01:02]}  Rd4 {[%clk 0:02:06]} 24. Nb5 {[%clk 0:00:48]}  Rd2 {[%clk 0:02:05]} 25. Nf6 {[%clk 0:00:35]}  Bxf6 {[%clk 0:02:01]} 26. exf6+ {[%clk 0:00:36]}  Kxf6 {[%clk 0:02:01]} 27. Rf1 {[%clk 0:00:34]}  Ke7 {[%clk 0:01:52]} 28. f5 {[%clk 0:00:27]}  exf5 {[%clk 0:01:43]} 29. Rae1+ {[%clk 0:00:27]}  Be6 {[%clk 0:01:43]} 30. Rf2 {[%clk 0:00:22]}  Rxf2 {[%clk 0:01:42]} 31. Kxf2 {[%clk 0:00:23]}  a5 {[%clk 0:01:35]} 32. a4 {[%clk 0:00:19]}  Kd7 {[%clk 0:01:34]} 33. Nc3 {[%clk 0:00:15]}  d4 {[%clk 0:01:34]} 34. Ne2 {[%clk 0:00:09]}  Rh8 {[%clk 0:01:33]} 35. Rh1 {[%clk 0:00:08]}  Kc6 {[%clk 0:01:23]} 36. h4 {[%clk 0:00:07]}  f6 {[%clk 0:01:21]} 37. Nc1 {[%clk 0:00:05]}  f4 {[%clk 0:01:16]} 38. h5 {[%clk 0:00:02]}  fxg3+ {[%clk 0:01:15]} 39. Kxg3 {[%clk 0:00:03]}  Rh6 {[%clk 0:01:09]} 40. Nd3 {[%clk 0:00:03]}  Kd6 {[%clk 0:01:08]} 41. Nf2 {[%clk 0:00:02]}  f5 {[%clk 0:01:07]} 42. Rh2 {[%clk 0:00:02]}  Bf7 {[%clk 0:01:07]} 43. Kf3 {[%clk 0:00:02]}  Rxh5 {[%clk 0:01:07]} 44. Rxh5 {[%clk 0:00:02]}  Bxh5+ {[%clk 0:01:08]} 45. Kg3 {[%clk 0:00:03]}  Ke5 {[%clk 0:01:07]} 46. Nd3+ {[%clk 0:00:03]}  Kd5 {[%clk 0:01:08]} 47. Nb2 {[%clk 0:00:03]}  f4+ {[%clk 0:01:08]} 48. Kf2 {[%clk 0:00:04]}  g4 {[%clk 0:01:06]} 49. Nc4 {[%clk 0:00:04]}  g3+ {[%clk 0:01:06]} 50. Kg2 {[%clk 0:00:04]}  Bd1 {[%clk 0:01:05]} 51. Nxa5 {[%clk 0:00:04]}  Bxc2 {[%clk 0:01:04]} 52. Nc4 {[%clk 0:00:04]}  Bxb3 {[%clk 0:01:05]} 53. Nb6+ {[%clk 0:00:03]}  Kc6 {[%clk 0:01:04]} 54. a5 {[%clk 0:00:00]}  Kb5 {[%clk 0:01:04]} 0-1


[Site "https://www.chess.com"]

[Event "Titled Tuesday Blitz July 4 Early 2023"]
[White "Streltsov, Alexey"]
[Black "Vovk, Orest"]
[WhiteFideId "24104434"]
[BlackFideId "14113490"]
[WhiteElo "2460"]
[BlackElo "2589"]
[Result "1-0"]
[Round "10"]
[TimeControl "180+2"]
[Date "2023.07.04"]
[WhiteClock "0:00:53"]
[BlackClock "0:00:05"]
[Board "71"]

1. d4 {[%clk 0:03:00]}  h6 {[%clk 0:02:56]} 2. e4 {[%clk 0:03:00]}  g5 {[%clk 0:02:55]} 3. Nc3 {[%clk 0:03:00]}  Bg7 {[%clk 0:02:54]} 4. f4 {[%clk 0:03:01]}  c5 {[%clk 0:02:54]} 5. dxc5 {[%clk 0:02:45]}  Bxc3+ {[%clk 0:02:51]} 6. bxc3 {[%clk 0:02:45]}  gxf4 {[%clk 0:02:51]} 7. Bxf4 {[%clk 0:02:45]}  Nc6 {[%clk 0:02:48]} 8. Bc4 {[%clk 0:02:38]}  Qa5 {[%clk 0:02:43]} 9. Ne2 {[%clk 0:02:34]}  Qxc5 {[%clk 0:02:40]} 10. Qd5 {[%clk 0:02:34]}  Qxd5 {[%clk 0:02:29]} 11. exd5 {[%clk 0:02:35]}  Na5 {[%clk 0:02:27]} 12. Bd3 {[%clk 0:02:35]}  d6 {[%clk 0:02:24]} 13. O-O {[%clk 0:02:34]}  Bd7 {[%clk 0:02:11]} 14. Rae1 {[%clk 0:02:32]}  O-O-O {[%clk 0:02:07]} 15. Nd4 {[%clk 0:02:31]}  a6 {[%clk 0:01:53]} 16. c4 {[%clk 0:02:29]}  b6 {[%clk 0:01:47]} 17. Bd2 {[%clk 0:02:25]}  Nb7 {[%clk 0:01:45]} 18. Rxf7 {[%clk 0:02:24]}  Nc5 {[%clk 0:01:43]} 19. Bf5 {[%clk 0:02:17]}  Kc7 {[%clk 0:01:24]} 20. Bxd7 {[%clk 0:02:03]}  Kxd7 {[%clk 0:01:13]} 21. Nc6 {[%clk 0:01:56]}  Re8 {[%clk 0:01:10]} 22. Bc3 {[%clk 0:01:56]}  Nf6 {[%clk 0:01:01]} 23. Bxf6 {[%clk 0:01:51]}  Rhf8 {[%clk 0:01:00]} 24. Rexe7+ {[%clk 0:01:35]}  Rxe7 {[%clk 0:01:00]} 25. Rxe7+ {[%clk 0:01:35]}  Kc8 {[%clk 0:01:00]} 26. Bd4 {[%clk 0:01:36]}  Rf4 {[%clk 0:00:58]} 27. c3 {[%clk 0:01:31]}  Nd7 {[%clk 0:00:49]} 28. Re6 {[%clk 0:01:19]}  Kc7 {[%clk 0:00:47]} 29. Rxh6 {[%clk 0:01:20]}  Re4 {[%clk 0:00:48]} 30. Rh7 {[%clk 0:01:19]}  Re2 {[%clk 0:00:41]} 31. h4 {[%clk 0:01:12]}  Rxa2 {[%clk 0:00:40]} 32. h5 {[%clk 0:01:12]}  Ra1+ {[%clk 0:00:38]} 33. Kh2 {[%clk 0:01:11]}  Rf1 {[%clk 0:00:36]} 34. Bxb6+ {[%clk 0:01:10]}  Kxb6 {[%clk 0:00:36]} 35. Rxd7 {[%clk 0:01:10]}  Kc5 {[%clk 0:00:33]} 36. h6 {[%clk 0:01:10]}  Rf6 {[%clk 0:00:32]} 37. h7 {[%clk 0:01:10]}  Rh6+ {[%clk 0:00:32]} 38. Kg3 {[%clk 0:01:09]}  Kxc4 {[%clk 0:00:33]} 39. Kg4 {[%clk 0:00:52]}  Kxd5 {[%clk 0:00:33]} 40. Nd8 {[%clk 0:00:53]}  Rh1 {[%clk 0:00:24]} 41. Kg5 {[%clk 0:00:51]}  a5 {[%clk 0:00:21]} 42. Kg6 {[%clk 0:00:52]}  a4 {[%clk 0:00:17]} 43. Ra7 {[%clk 0:00:52]}  Rh4 {[%clk 0:00:14]} 44. Nf7 {[%clk 0:00:52]}  Rxh7 {[%clk 0:00:05]} 45. Kxh7 {[%clk 0:00:53]} 1-0


[Site "https://www.chess.com"]

[Event "Titled Tuesday Blitz July 4 Early 2023"]
[White "Marn, Jan"]
[Black "Janaszak, Dawid"]
[WhiteFideId "14619245"]
[BlackFideId "1119206"]
[WhiteElo "2460"]
[BlackElo "2588"]
[Result "0-1"]
[Round "10"]
[TimeControl "180+2"]
[Date "2023.07.04"]
[WhiteClock "0:00:02"]
[BlackClock "0:00:32"]
[Board "72"]

1. d4 {[%clk 0:03:00]}  d5 {[%clk 0:02:59]} 2. Nc3 {[%clk 0:02:58]}  Nc6 {[%clk 0:02:56]} 3. Bf4 {[%clk 0:02:57]}  e5 {[%clk 0:02:56]} 4. dxe5 {[%clk 0:02:45]}  d4 {[%clk 0:02:57]} 5. Ne4 {[%clk 0:02:35]}  Qd5 {[%clk 0:02:56]} 6. Nd2 {[%clk 0:02:21]}  Nxe5 {[%clk 0:02:50]} 7. Ngf3 {[%clk 0:02:21]}  Ng6 {[%clk 0:02:46]} 8. Bxc7 {[%clk 0:02:11]}  Nf6 {[%clk 0:02:46]} 9. g3 {[%clk 0:02:01]}  Bf5 {[%clk 0:02:43]} 10. Bg2 {[%clk 0:01:57]}  Qc5 {[%clk 0:02:42]} 11. Bf4 {[%clk 0:01:55]}  Bxc2 {[%clk 0:02:38]} 12. Qc1 {[%clk 0:01:55]}  Nxf4 {[%clk 0:02:36]} 13. gxf4 {[%clk 0:01:56]}  d3 {[%clk 0:02:25]} 14. O-O {[%clk 0:01:38]}  dxe2 {[%clk 0:02:23]} 15. Re1 {[%clk 0:01:38]}  O-O-O {[%clk 0:01:33]} 16. Rxe2 {[%clk 0:01:24]}  Kb8 {[%clk 0:01:31]} 17. Ne5 {[%clk 0:01:09]}  Qc7 {[%clk 0:01:07]} 18. Ndc4 {[%clk 0:00:56]}  Rd1+ {[%clk 0:01:05]} 19. Qxd1 {[%clk 0:00:53]}  Bxd1 {[%clk 0:01:05]} 20. Rxd1 {[%clk 0:00:54]}  Bc5 {[%clk 0:01:06]} 21. Rc2 {[%clk 0:00:39]}  Rd8 {[%clk 0:01:00]} 22. Rxd8+ {[%clk 0:00:22]}  Qxd8 {[%clk 0:01:00]} 23. Bf3 {[%clk 0:00:22]}  a6 {[%clk 0:00:53]} 24. a3 {[%clk 0:00:18]}  Qd4 {[%clk 0:00:52]} 25. Ne3 {[%clk 0:00:16]}  Bd6 {[%clk 0:00:43]} 26. Nxf7 {[%clk 0:00:09]}  Bxf4 {[%clk 0:00:41]} 27. Rc4 {[%clk 0:00:08]}  Qd7 {[%clk 0:00:35]} 28. Rxf4 {[%clk 0:00:08]}  Qxf7 {[%clk 0:00:35]} 29. Nd5 {[%clk 0:00:08]}  Qg6+ {[%clk 0:00:34]} 30. Kf1 {[%clk 0:00:08]}  Nxd5 {[%clk 0:00:31]} 31. Bxd5 {[%clk 0:00:02]}  Qd3+ {[%clk 0:00:32]} 0-1


[Site "https://www.chess.com"]

[Event "Titled Tuesday Blitz July 4 Early 2023"]
[White "Hoffmann, Asa"]
[Black "Ezat, Mohamed"]
[WhiteFideId "2001470"]
[BlackFideId "10600906"]
[WhiteElo "2446"]
[BlackElo "2580"]
[Result "0-1"]
[Round "10"]
[TimeControl "180+2"]
[Date "2023.07.04"]
[WhiteClock "0:00:14"]
[BlackClock "0:00:35"]
[Board "73"]

1. d4 {[%clk 0:02:46]}  Nf6 {[%clk 0:02:55]} 2. Bg5 {[%clk 0:02:45]}  d5 {[%clk 0:02:54]} 3. Nd2 {[%clk 0:02:45]}  Nbd7 {[%clk 0:02:54]} 4. e3 {[%clk 0:02:44]}  g6 {[%clk 0:02:53]} 5. f4 {[%clk 0:02:43]}  Bg7 {[%clk 0:02:53]} 6. Bd3 {[%clk 0:02:43]}  O-O {[%clk 0:02:53]} 7. Ngf3 {[%clk 0:02:43]}  c5 {[%clk 0:02:52]} 8. c3 {[%clk 0:02:43]}  Qb6 {[%clk 0:02:49]} 9. Rb1 {[%clk 0:02:43]}  Ng4 {[%clk 0:02:47]} 10. Qe2 {[%clk 0:02:42]}  f6 {[%clk 0:02:40]} 11. Bh4 {[%clk 0:02:41]}  e5 {[%clk 0:02:39]} 12. h3 {[%clk 0:02:38]}  Nh6 {[%clk 0:02:32]} 13. fxe5 {[%clk 0:02:19]}  fxe5 {[%clk 0:02:16]} 14. Bc2 {[%clk 0:02:00]}  Nf5 {[%clk 0:01:53]} 15. Bxf5 {[%clk 0:01:50]}  Rxf5 {[%clk 0:01:51]} 16. O-O {[%clk 0:01:48]}  e4 {[%clk 0:01:35]} 17. Nh2 {[%clk 0:01:42]}  Nf8 {[%clk 0:01:33]} 18. g4 {[%clk 0:01:31]}  Rxf1+ {[%clk 0:01:31]} 19. Rxf1 {[%clk 0:01:26]}  Be6 {[%clk 0:01:29]} 20. b3 {[%clk 0:01:22]}  Rc8 {[%clk 0:01:28]} 21. Qf2 {[%clk 0:01:17]}  cxd4 {[%clk 0:01:27]} 22. cxd4 {[%clk 0:01:16]}  Rc2 {[%clk 0:01:24]} 23. Bf6 {[%clk 0:01:12]}  Qc7 {[%clk 0:01:24]} 24. g5 {[%clk 0:01:05]}  Bxh3 {[%clk 0:01:19]} 25. Be5 {[%clk 0:01:01]}  Qe7 {[%clk 0:01:15]} 26. Bf6 {[%clk 0:00:48]}  Bxf6 {[%clk 0:01:10]} 27. gxf6 {[%clk 0:00:47]}  Qd6 {[%clk 0:01:11]} 28. Rd1 {[%clk 0:00:38]}  Kf7 {[%clk 0:01:06]} 29. Nxe4 {[%clk 0:00:37]}  dxe4 {[%clk 0:00:55]} 30. Qxc2 {[%clk 0:00:33]}  Qg3+ {[%clk 0:00:55]} 31. Kh1 {[%clk 0:00:31]}  Qxe3 {[%clk 0:00:45]} 32. Qc4+ {[%clk 0:00:26]}  Ne6 {[%clk 0:00:43]} 33. d5 {[%clk 0:00:22]}  Nf4 {[%clk 0:00:39]} 34. d6+ {[%clk 0:00:18]}  Kf8 {[%clk 0:00:35]} 35. d7 {[%clk 0:00:14]}  Bg2# {[%clk 0:00:35]} 0-1


[Site "https://www.chess.com"]

[Event "Titled Tuesday Blitz July 4 Early 2023"]
[White "Gontcharov, Vladislav"]
[Black "FromTexas54"]
[WhiteFideId "4123492"]
[WhiteElo "2572"]
[BlackElo "2433"]
[Result "1-0"]
[Round "10"]
[TimeControl "180+2"]
[Date "2023.07.04"]
[WhiteClock "0:01:06"]
[BlackClock "0:00:45"]
[Board "75"]

1. d4 {[%clk 0:02:59]}  Nf6 {[%clk 0:01:49]} 2. c4 {[%clk 0:02:58]}  g6 {[%clk 0:01:49]} 3. Nc3 {[%clk 0:02:58]}  Bg7 {[%clk 0:01:50]} 4. Nf3 {[%clk 0:02:57]}  d6 {[%clk 0:01:50]} 5. Bg5 {[%clk 0:02:57]}  O-O {[%clk 0:01:51]} 6. e3 {[%clk 0:02:57]}  c5 {[%clk 0:01:49]} 7. Be2 {[%clk 0:02:56]}  cxd4 {[%clk 0:01:42]} 8. Nxd4 {[%clk 0:02:54]}  Nc6 {[%clk 0:01:41]} 9. O-O {[%clk 0:02:51]}  Nxd4 {[%clk 0:01:36]} 10. Qxd4 {[%clk 0:02:46]}  Be6 {[%clk 0:01:36]} 11. Qd2 {[%clk 0:02:39]}  Rc8 {[%clk 0:01:35]} 12. b3 {[%clk 0:02:38]}  a6 {[%clk 0:01:35]} 13. Rac1 {[%clk 0:02:37]}  Qa5 {[%clk 0:01:35]} 14. e4 {[%clk 0:02:06]}  b5 {[%clk 0:01:29]} 15. Nd5 {[%clk 0:01:34]}  Qd8 {[%clk 0:01:29]} 16. Bxf6 {[%clk 0:01:31]}  exf6 {[%clk 0:01:26]} 17. cxb5 {[%clk 0:01:30]}  axb5 {[%clk 0:01:26]} 18. Bxb5 {[%clk 0:01:30]}  f5 {[%clk 0:01:26]} 19. exf5 {[%clk 0:01:27]}  Rxc1 {[%clk 0:01:22]} 20. Rxc1 {[%clk 0:01:25]}  Bxf5 {[%clk 0:01:22]} 21. Bc4 {[%clk 0:01:23]}  Qh4 {[%clk 0:01:15]} 22. Re1 {[%clk 0:01:14]}  Be5 {[%clk 0:01:13]} 23. g3 {[%clk 0:01:13]}  Qh3 {[%clk 0:01:09]} 24. Bf1 {[%clk 0:01:07]}  Qh5 {[%clk 0:00:45]} 25. Rxe5 {[%clk 0:01:06]} 1-0


[Site "https://www.chess.com"]